fUST/lending_fUST_20241106
["ID","MTS","AMOUNT","RATE_DAILY","PERIOD"]
[341460733,1730908240630,-500.0,0.00027397,2]
[341460735,1730908240641,-500.0,0.00027397,2]
[341460737,1730908240650,-538.18870807,0.00027397,2]
[341460739,1730908240660,-500.0,0.00027397,2]
[341460741,1730908240671,-500.0,0.00027397,2]
[341460743,1730908240681,-500.0,0.00027397,2]
[341460745,1730908240690,-500.0,0.00027397,2]
[341460747,1730908240702,-500.0,0.00027397,2]
[341460749,1730908240713,-500.0,0.00027397,2]
[341460751,1730908240723,-500.0,0.00027397,2]
[341460753,1730908240733,-500.0,0.00027397,2]
[341460755,1730908240744,-519.26121529,0.00027397,2]
[341460757,1730908240755,-502.17285563,0.00027397,2]
[341460759,1730908240765,-500.0,0.00027397,2]
[341460761,1730908240774,-500.0,0.00027397,2]
[341460762,1730908240783,-608.54,0.00027397,2]
[341460763,1730908240794,-500.0,0.00027397,2]
[341460764,1730908240803,-500.0,0.00027397,2]
[341460765,1730908240813,-572.88979023,0.00027397,2]
[341460766,1730908240823,-500.0,0.00027397,2]
[341460767,1730908240833,-500.0,0.00027397,2]
[341460768,1730908240843,-500.0,0.00027397,2]
[341460769,1730908240852,-500.0,0.00027397,2]
[341460770,1730908240862,-500.0,0.00027397,2]
[341460771,1730908240873,-500.0,0.00027397,2]
[341460772,1730908240884,-500.0,0.00027397,2]
[341460773,1730908240906,-500.0,0.00027397,2]
[341460774,1730908240916,-500.0,0.00027397,2]
[341460775,1730908240926,-500.0,0.00027397,2]
[341460776,1730908240937,-500.0,0.00027397,2]
[341460778,1730908240947,-500.0,0.00027397,2]
[341460780,1730908240958,-500.0,0.00027397,2]
[341460782,1730908240968,-500.0,0.00027397,2]
[341460784,1730908240979,-500.0,0.00027397,2]
[341460786,1730908240989,-500.0,0.00027397,2]
[341460788,1730908240998,-500.0,0.00027397,2]
[341460790,1730908241009,-500.0,0.00027397,2]
[341460792,1730908241019,-500.0,0.00027397,2]
[341460795,1730908241030,-500.0,0.00027397,2]
[341460797,1730908241040,-500.0,0.00027397,2]
[341460799,1730908241050,-500.0,0.00027397,2]
[341460801,1730908241059,-500.0,0.00027397,2]
[341460803,1730908241069,-500.0,0.00027397,2]
[341460805,1730908241081,-500.0,0.00027397,2]
[341460807,1730908241091,-500.0,0.00027397,2]
[341460809,1730908241101,-500.0,0.00027397,2]
[341460811,1730908241112,-500.0,0.00027397,2]
[341460813,1730908241122,-500.0,0.00027397,2]
[341460815,1730908241132,-500.0,0.00027397,2]
[341460817,1730908241144,-500.0,0.00027397,2]
[341460819,1730908241154,-500.0,0.00027397,2]
[341460821,1730908241164,-605.68,0.00027397,2]
[341460823,1730908241176,-500.0,0.00027397,2]
[341460826,1730908241187,-520.02456677,0.00027397,2]
[341460828,1730908241197,-500.0,0.00027397,2]
[341460830,1730908241207,-641.59,0.00027397,2]
[341460832,1730908241216,-500.0,0.00027397,2]
[341460834,1730908241227,-500.0,0.00027397,2]
[341460835,1730908241239,-500.0,0.00027397,2]
[341460837,1730908241248,-500.0,0.00027397,2]
[341460840,1730908241259,-507.01009758,0.00027397,2]
[341460841,1730908241269,-502.23842673,0.00027397,2]
[341460843,1730908241279,-500.0,0.00027397,2]
[341460845,1730908241289,-500.0,0.00027397,2]
[341460846,1730908241298,-500.0,0.00027397,2]
[341460847,1730908241308,-500.0,0.00027397,2]
[341460848,1730908241317,-523.86963658,0.00027397,2]
[341460858,1730908241420,-500.0,0.00027397,2]
[341460861,1730908241430,-500.0,0.00027397,2]
[341460863,1730908241440,-576.9839297,0.00027397,2]
[341460865,1730908241449,-500.0,0.00027397,2]
[341460867,1730908241459,-503.43504948,0.00027397,2]
[341460869,1730908241469,-2639.15,0.00027397,2]
[341460870,1730908241478,-500.0,0.00027397,2]
[341460871,1730908241487,-512.05323822,0.00027397,2]
[341460872,1730908241497,-500.0,0.00027397,2]
[341460873,1730908241507,-500.0,0.00027397,2]
[341460874,1730908241516,-231.9095538,0.00027397,2]
[341460875,1730908241525,-500.0,0.00027397,2]
[341460876,1730908241535,-500.0,0.00027397,2]
[341460878,1730908241545,-500.0,0.00027397,2]
[341460880,1730908241554,-500.0,0.00027397,2]
[341460882,1730908241564,-515.75070025,0.00027397,2]
[341460884,1730908241575,-617.45,0.00027397,2]
[341460886,1730908241585,-500.0,0.00027397,2]
[341460888,1730908241597,-500.0,0.00027397,2]
[341460890,1730908241607,-500.0,0.00027397,2]
[341460893,1730908241616,-501.00230403,0.00027397,2]
[341460895,1730908241627,-155.86566885,0.00027397,2]
[341460897,1730908241643,-500.0,0.00027397,2]
[341460899,1730908241653,-502.9267445,0.00027397,2]
[341460901,1730908241665,-500.0,0.00027397,2]
[341460903,1730908241675,-500.0,0.00027397,2]
[341460905,1730908241686,-500.0,0.00027397,2]
[341460907,1730908241696,-169.68108327,0.00027397,2]
[341460909,1730908241706,-500.0,0.00027397,2]
[341460911,1730908241717,-500.0,0.00027397,2]
[341460913,1730908241726,-1458.6,0.00027397,2]
[341460915,1730908241737,-500.0,0.00027397,2]
[341460917,1730908241748,-500.0,0.00027397,2]
[341460919,1730908241759,-500.0,0.00027397,2]
[341460921,1730908241768,-500.0,0.00027397,2]
[341460923,1730908241778,-500.0,0.00027397,2]
[341460925,1730908241787,-500.0,0.00027397,2]
[341460927,1730908241796,-608.69904442,0.00027397,2]
[341460929,1730908241811,-500.0,0.00027397,2]
[341460930,1730908241820,-500.0,0.00027397,2]
[341460933,1730908241830,-349.48810005,0.00027397,2]
[341460934,1730908241839,-500.0,0.00027397,2]
[341460936,1730908241848,-500.0,0.00027397,2]
[341460938,1730908241858,-500.0,0.00027397,2]
[341460940,1730908241867,-500.0,0.00027397,2]
[341460942,1730908241877,-500.0,0.00027397,2]
[341460944,1730908241892,-500.0,0.00027397,2]
[341460946,1730908241903,-500.0,0.00027397,2]
[341460947,1730908241913,-538.94247471,0.00027397,2]
[341460948,1730908241925,-200.0,0.00027397,2]
[341460949,1730908241934,-500.0,0.00027397,2]
[341460950,1730908241943,-500.0,0.00027397,2]
[341460951,1730908241953,-500.0,0.00027397,2]
[341460952,1730908241963,-500.0,0.00027397,2]
[341460953,1730908241973,-500.0,0.00027397,2]
[341460954,1730908241984,-513.52523236,0.00027397,2]
[341460955,1730908241993,-500.0,0.00027397,2]
[341460956,1730908242003,-556.81467063,0.00027397,2]
[341460957,1730908242013,-500.0,0.00027397,2]
[341460958,1730908242022,-500.0,0.00027397,2]
[341460959,1730908242033,-500.0,0.00027397,2]
[341460960,1730908242042,-500.0,0.00027397,2]
[341460961,1730908242051,-500.0,0.00027397,2]
[341460962,1730908242061,-517.25868287,0.00027397,2]
[341460963,1730908242070,-500.0,0.00027397,2]
[341460964,1730908242080,-500.0,0.00027397,2]
[341460965,1730908242092,-500.0,0.00027397,2]
[341460966,1730908242102,-459.16745048,0.00027397,2]
[341460967,1730908242111,-529.71572403,0.00027397,2]
[341460968,1730908242122,-505.08451933,0.00027397,2]
[341460969,1730908242132,-500.0,0.00027397,2]
[341460970,1730908242145,-577.64392067,0.00027397,2]
[341460971,1730908242155,-500.0,0.00027397,2]
[341460972,1730908242165,-500.0,0.00027397,2]
[341460973,1730908242175,-531.16173908,0.00027397,2]
[341460974,1730908242184,-512.05915916,0.00027397,2]
[341460975,1730908242193,-500.0,0.00027397,2]
[341460976,1730908242203,-314.72661052,0.00027397,2]
[341460977,1730908242212,-500.0,0.00027397,2]
[341460978,1730908242222,-500.0,0.00027397,2]
[341460979,1730908242232,-500.0,0.00027397,2]
[341460980,1730908242241,-623.26797984,0.00027397,2]
[341460981,1730908242250,-500.0,0.00027397,2]
[341460982,1730908242259,-504.03967886,0.00027397,2]
[341460983,1730908242269,-500.0,0.00027397,2]
[341460984,1730908242280,-500.0,0.00027397,2]
[341460985,1730908242289,-500.0,0.00027397,2]
[341460986,1730908242298,-500.0,0.00027397,2]
[341460987,1730908242308,-500.0,0.00027397,2]
[341460988,1730908242317,-500.0,0.00027397,2]
[341460989,1730908242326,-500.0,0.00027397,2]
[341460990,1730908242336,-500.0,0.00027397,2]
[341460991,1730908242345,-500.0,0.00027397,2]
[341460992,1730908242355,-500.0,0.00027397,2]
[341460993,1730908242366,-500.0,0.00027397,2]
[341460994,1730908242377,-500.0,0.00027397,2]
[341460995,1730908242389,-476.63040076,0.00027397,2]
[341460996,1730908242399,-513.40865992,0.00027397,2]
[341460997,1730908242408,-500.0,0.00027397,2]
[341460998,1730908242418,-500.0,0.00027397,2]
[341460999,1730908242428,-500.0,0.00027397,2]
[341461000,1730908242438,-500.0,0.00027397,2]
[341461001,1730908242449,-500.0,0.00027397,2]
[341461002,1730908242458,-500.0,0.00027397,2]
[341461003,1730908242468,-500.0,0.00027397,2]
[341461004,1730908242479,-500.0,0.00027397,2]
[341461005,1730908242488,-500.0,0.00027397,2]
[341461006,1730908242498,-500.0,0.00027397,2]
[341461007,1730908242509,-500.0,0.00027397,2]
[341461008,1730908242520,-500.0,0.00027397,2]
[341461009,1730908242531,-500.0,0.00027397,2]
[341461010,1730908242540,-506.38186849,0.00027397,2]
[341461011,1730908242551,-549.73109224,0.00027397,2]
[341461012,1730908242561,-154.93615645,0.00027397,2]
[341461014,1730908242571,-500.0,0.00027397,2]
[341461015,1730908242580,-500.0,0.00027397,2]
[341461016,1730908242592,-507.313442,0.00027397,2]
[341461017,1730908242601,-500.0,0.00027397,2]
[341461018,1730908242611,-500.0,0.00027397,2]
[341461019,1730908242621,-500.0,0.00027397,2]
[341461020,1730908242632,-500.0,0.00027397,2]
[341461021,1730908242643,-500.0,0.00027397,2]
[341461022,1730908242652,-500.0,0.00027397,2]
[341461023,1730908242662,-500.0,0.00027397,2]
[341461024,1730908242673,-500.0,0.00027397,2]
[341461025,1730908242684,-500.0,0.00027397,2]
[341461026,1730908242694,-500.0,0.00027397,2]
[341461027,1730908242703,-500.0,0.00027397,2]
[341461028,1730908242716,-500.0,0.00027397,2]
[341461029,1730908242726,-500.0,0.00027397,2]
[341461030,1730908242735,-500.0,0.00027397,2]
[341461031,1730908242745,-500.0,0.00027397,2]
[341461032,1730908242757,-500.0,0.00027397,2]
[341461033,1730908242769,-500.0,0.00027397,2]
[341461035,1730908242780,-500.0,0.00027397,2]
[341461037,1730908242790,-500.0,0.00027397,2]
[341461039,1730908242801,-500.0,0.00027397,2]
[341461041,1730908242812,-500.0,0.00027397,2]
[341461043,1730908242822,-500.0,0.00027397,2]
[341461045,1730908242832,-500.0,0.00027397,2]
[341461047,1730908242842,-500.0,0.00027397,2]
[341461049,1730908242851,-500.0,0.00027397,2]
[341461051,1730908242860,-500.0,0.00027397,2]
[341461053,1730908242872,-500.0,0.00027397,2]
[341461055,1730908242883,-500.0,0.00027397,2]
[341461057,1730908242894,-500.0,0.00027397,2]
[341461059,1730908242903,-500.0,0.00027397,2]
[341461062,1730908242914,-447.95411237,0.00027397,2]
[341461064,1730908242924,-500.0,0.00027397,2]
[341461066,1730908242934,-512.35021148,0.00027397,2]
[341461068,1730908242943,-500.0,0.00027607,5]
[341461070,1730908242953,-511.26945354,0.00027607,2]
[341461072,1730908242963,-500.0,0.0002767,2]
[341461074,1730908242973,-226.40880533,0.0002767,2]
[341461076,1730908242982,-418.10722219,0.0002767,2]
[341461078,1730908242992,-500.0,0.00027671,2]
[341461080,1730908243002,-618.48568559,0.00027671,2]
[341461082,1730908243013,-500.0,0.00027671,2]
[341461084,1730908243022,-297.32518693,0.00027671,2]
[341461086,1730908243032,-500.0,0.00027671,2]
[341461088,1730908243042,-500.0,0.00027671,2]
[341461090,1730908243052,-500.0,0.00027671,2]
[341461092,1730908243062,-596.07390242,0.00027671,2]
[341461094,1730908243071,-516.50382394,0.00027671,2]
[341461096,1730908243082,-500.0,0.00027671,2]
[341461098,1730908243092,-500.0,0.00027671,2]
[341461100,1730908243101,-152.79097722,0.00027671,2]
[341461102,1730908243111,-500.0,0.00027671,2]
[341461104,1730908243121,-253.923298,0.00027671,2]
[341461106,1730908243130,-500.0,0.00027671,2]
[341461108,1730908243142,-500.0,0.00027671,2]
[341461110,1730908243152,-500.0,0.00027671,2]
[341461112,1730908243162,-514.80756876,0.00027671,2]
[341461114,1730908243173,-500.0,0.00027671,2]
[341461116,1730908243183,-545.7655946,0.00027671,2]
[341461118,1730908243192,-512.47080336,0.00027671,2]
[341461120,1730908243201,-500.0,0.00027671,2]
[341461122,1730908243212,-609.54815637,0.00027671,2]
[341461124,1730908243221,-510.84366826,0.00027671,2]
[341461126,1730908243231,-500.0,0.00027671,2]
[341461128,1730908243241,-500.0,0.00027671,2]
[341461130,1730908243251,-500.0,0.00027671,2]
[341461132,1730908243262,-500.0,0.00027671,2]
[341461134,1730908243273,-500.0,0.00027671,2]
[341461136,1730908243283,-500.0,0.00027671,2]
[341461137,1730908243292,-500.0,0.00027671,2]
[341461139,1730908243302,-500.0,0.00027671,2]
[341461141,1730908243312,-500.0,0.00027671,2]
[341461143,1730908243321,-500.0,0.00027671,2]
[341461145,1730908243331,-500.0,0.00027671,2]
[341461147,1730908243342,-500.0,0.00027671,2]
[341461149,1730908243351,-507.66462134,0.00027671,2]
[341461151,1730908243363,-622.67866678,0.00027671,2]
[341461153,1730908243373,-644.39053652,0.00027671,2]
[341461155,1730908243385,-500.0,0.00027671,2]
[341461157,1730908243397,-500.0,0.00027671,2]
[341461160,1730908243407,-500.0,0.00027671,2]
[341461162,1730908243416,-500.0,0.00027671,2]
[341461164,1730908243426,-500.0,0.00027671,2]
[341461166,1730908243435,-500.0,0.00027671,2]
[341461167,1730908243445,-515.30521748,0.00027671,2]
[341461169,1730908243454,-500.0,0.00027671,2]
[341461171,1730908243464,-500.0,0.00027671,2]
[341461172,1730908243473,-500.0,0.00027671,2]
[341461173,1730908243482,-500.0,0.00027671,2]
[341461174,1730908243492,-500.0,0.00027671,2]
[341461176,1730908243502,-500.0,0.00027671,2]
[341461179,1730908243512,-500.0,0.00027671,2]
[341461181,1730908243521,-500.0,0.00027671,2]
[341461183,1730908243531,-500.0,0.00027671,2]
[341461185,1730908243541,-641.59,0.00027671,2]
[341461187,1730908243550,-508.05296724,0.00027671,2]
[341461189,1730908243560,-500.0,0.00027671,2]
[341461190,1730908243569,-500.0,0.00027671,2]
[341461192,1730908243580,-500.0,0.00027671,2]
[341461195,1730908243591,-500.0,0.00027671,2]
[341461197,1730908243601,-500.0,0.00027671,2]
[341461198,1730908243610,-500.0,0.00027671,2]
[341461199,1730908243622,-500.0,0.00027671,2]
[341461200,1730908243638,-500.0,0.00027671,2]
[341461201,1730908243649,-2639.15,0.00027671,2]
[341461202,1730908243660,-500.0,0.00027671,2]
[341461203,1730908243670,-501.58909139,0.00027671,2]
[341461204,1730908243681,-532.24557625,0.00027671,2]
[341461205,1730908243690,-617.45,0.00027671,2]
[341461206,1730908243700,-500.0,0.00027671,2]
[341461207,1730908243711,-446.003483,0.00027671,2]
[341461208,1730908243721,-500.0,0.00027671,2]
[341461209,1730908243730,-500.0,0.00027671,2]
[341461210,1730908243742,-500.0,0.00027671,2]
[341461212,1730908243753,-1458.6,0.00027671,2]
[341461214,1730908243763,-500.0,0.00027671,2]
[341461216,1730908243774,-500.0,0.00027671,2]
[341461218,1730908243784,-500.0,0.00027671,2]
[341461220,1730908243793,-557.8,0.00027671,2]
[341461221,1730908243804,-500.0,0.00027671,2]
[341461222,1730908243814,-500.0,0.00027671,2]
[341461223,1730908243824,-500.0,0.00027671,2]
[341461224,1730908243925,-500.0,0.00027671,2]
[341461225,1730908243936,-512.52357782,0.00027671,2]
[341461226,1730908243946,-500.0,0.00027671,2]
[341461227,1730908243956,-514.39995687,0.00027671,2]
[341461228,1730908243965,-500.0,0.00027671,2]
[341461229,1730908243975,-200.0,0.00027671,2]
[341461230,1730908243984,-500.0,0.00027671,2]
[341461231,1730908243994,-500.0,0.00027671,2]
[341461232,1730908244003,-500.0,0.00027671,2]
[341461233,1730908244012,-500.0,0.00027671,2]
[341461234,1730908244022,-500.0,0.00027671,2]
[341461235,1730908244032,-500.0,0.00027671,2]
[341461236,1730908244042,-500.0,0.00027671,2]
[341461237,1730908244051,-500.0,0.00027671,2]
[341461238,1730908244060,-500.0,0.00027671,2]
[341461239,1730908244069,-500.0,0.00027671,2]
[341461240,1730908244079,-500.0,0.00027671,2]
[341461241,1730908244088,-500.0,0.00027671,2]
[341461242,1730908244097,-509.49601674,0.00027671,2]
[341461243,1730908244108,-458.47404901,0.00027671,2]
[341461244,1730908244118,-500.0,0.00027671,2]
[341461245,1730908244128,-500.0,0.00027671,2]
[341461246,1730908244139,-512.46475607,0.00027671,2]
[341461247,1730908244149,-500.0,0.00027671,2]
[341461248,1730908244159,-500.0,0.00027671,2]
[341461249,1730908244170,-500.0,0.00027671,2]
[341461250,1730908244180,-500.0,0.00027671,2]
[341461251,1730908244190,-500.0,0.00027671,2]
[341461252,1730908244201,-500.0,0.00027671,2]
[341461253,1730908244211,-500.0,0.00027671,2]
[341461254,1730908244223,-509.68905568,0.00027671,2]
[341461255,1730908244234,-500.0,0.00027671,2]
[341461256,1730908244244,-511.43751174,0.00027671,2]
[341461257,1730908244255,-500.0,0.00027671,2]
[341461258,1730908244265,-500.0,0.00027671,2]
[341461259,1730908244275,-587.06013441,0.00027671,2]
[341461260,1730908244285,-500.0,0.00027671,2]
[341461261,1730908244295,-500.0,0.00027671,2]
[341461262,1730908244305,-343.24506864,0.00027671,2]
[341461263,1730908244314,-504.88013199,0.00027673,5]
[341461264,1730908244323,-420.0,0.00027678,2]
[341461265,1730908244333,-1000.0,0.00027845,2]
[341461266,1730908244344,-500.0,0.00027945,2]
[341461267,1730908244354,-500.0,0.00027945,2]
[341461268,1730908244366,-500.0,0.00027945,2]
[341461269,1730908244377,-500.0,0.00027945,2]
[341461270,1730908244389,-510.19,0.00027945,2]
[341461271,1730908244399,-500.0,0.00027945,2]
[341461272,1730908244409,-500.0,0.00027945,2]
[341461273,1730908244418,-500.0,0.00027945,2]
[341461274,1730908244428,-500.0,0.00027945,2]
[341461275,1730908244437,-500.0,0.00027945,2]
[341461276,1730908244447,-500.0,0.00027945,2]
[341461277,1730908244458,-500.0,0.00027945,2]
[341461278,1730908244468,-500.0,0.00027945,2]
[341461279,1730908244479,-500.0,0.00027945,2]
[341461280,1730908244490,-219.9828685,0.00027945,2]
[341461281,1730908244501,-500.0,0.00027945,2]
[341461282,1730908244511,-500.0,0.00027945,2]
[341461283,1730908244520,-500.0,0.00027945,2]
[341461284,1730908244530,-362.64,0.00027945,2]
[341461285,1730908244540,-500.0,0.00027945,2]
[341461286,1730908244550,-500.0,0.00027945,2]
[341461287,1730908244560,-624.1,0.00027945,2]
[341461288,1730908244570,-500.0,0.00027945,2]
[341461289,1730908244579,-500.0,0.00027945,2]
[341461290,1730908244588,-641.59,0.00027945,2]
[341461291,1730908244598,-500.0,0.00027945,2]
[341461292,1730908244608,-500.0,0.00027945,2]
[341461293,1730908244618,-509.26549508,0.00027945,2]
[341461294,1730908244628,-2639.15,0.00027945,2]
[341461295,1730908244644,-617.45,0.00027945,2]
[341461296,1730908244655,-500.0,0.00027945,2]
[341461297,1730908244666,-500.0,0.00027945,2]
[341461298,1730908244675,-1458.6,0.00027945,2]
[341461299,1730908244685,-500.0,0.00027945,2]
[341461300,1730908244695,-500.0,0.00027945,2]
[341461301,1730908244705,-500.0,0.00027945,2]
[341461302,1730908244716,-500.0,0.00027945,2]
[341461303,1730908244727,-486.92443171,0.00027945,2]
[341461304,1730908244737,-500.0,0.00027945,2]
[341461305,1730908244747,-202.00238388,0.00027945,2]
[341461306,1730908244757,-500.0,0.00027945,2]
[341461307,1730908244767,-500.0,0.00027945,2]
[341461308,1730908244777,-500.0,0.00027945,2]
[341461309,1730908244787,-500.0,0.00027945,2]
[341461310,1730908244799,-193.91,0.00027945,2]
[341461311,1730908244811,-500.0,0.00027945,2]
[341461312,1730908244822,-359.08869764,0.00027945,2]
[341461313,1730908244832,-500.0,0.00027945,2]
[341461314,1730908244841,-500.0,0.00027945,2]
[341461315,1730908244852,-500.0,0.00027945,2]
[341461316,1730908244862,-500.0,0.00027945,2]
[341461317,1730908244872,-500.0,0.00027945,2]
[341461318,1730908244881,-506.9320964,0.00027945,2]
[341461319,1730908244892,-420.0,0.00028121,2]
[341461320,1730908244902,-170.859,0.00028187,19]
[341461321,1730908244912,-514.98276654,0.00028217,7]
[341461322,1730908244923,-500.0,0.00028218,2]
[341461323,1730908244934,-500.0,0.00028218,2]
[341461324,1730908244943,-500.0,0.00028218,2]
[341461325,1730908244954,-200.0,0.00028218,2]
[341461326,1730908244964,-508.9410394,0.00028218,2]
[341461327,1730908244975,-172.31773014,0.00028218,2]
[341461328,1730908244985,-500.0,0.00028218,2]
[341461329,1730908244994,-500.0,0.00028218,2]
[341461330,1730908245004,-500.0,0.00028218,2]
[341461331,1730908245014,-500.0,0.00028218,2]
[341461332,1730908245025,-500.0,0.00028218,2]
[341461333,1730908245035,-500.0,0.00028218,2]
[341461334,1730908245045,-500.0,0.00028218,2]
[341461335,1730908245055,-583.56754143,0.00028218,2]
[341461336,1730908245065,-500.0,0.00028218,2]
[341461337,1730908245077,-639.27801344,0.00028218,2]
[341461338,1730908245086,-500.0,0.00028218,2]
[341461339,1730908245097,-500.0,0.00028218,2]
[341461340,1730908245109,-504.37206655,0.00028218,2]
[341461341,1730908245118,-500.0,0.00028218,2]
[341461342,1730908245128,-497.22879591,0.00028218,2]
[341461343,1730908245141,-500.0,0.00028218,2]
[341461344,1730908245150,-500.0,0.00028218,2]
[341461345,1730908245160,-500.0,0.00028218,2]
[341461346,1730908245171,-500.0,0.00028218,2]
[341461347,1730908245181,-500.0,0.00028218,2]
[341461348,1730908245191,-500.0,0.00028219,2]
[341461349,1730908245200,-500.0,0.00028219,2]
[341461350,1730908245210,-517.06963218,0.00028219,2]
[341461351,1730908245222,-628.48730457,0.00028219,2]
[341461352,1730908245231,-513.30073599,0.00028219,2]
[341461353,1730908245242,-226.48,0.00028219,2]
[341461354,1730908245253,-500.0,0.00028219,2]
[341461355,1730908245263,-500.0,0.00028219,2]
[341461356,1730908245273,-575.62965216,0.00028219,2]
[341461357,1730908245283,-234.86,0.00028219,2]
[341461358,1730908245293,-500.0,0.00028219,2]
[341461359,1730908245303,-500.0,0.00028219,2]
[341461360,1730908245313,-500.0,0.00028219,2]
[341461361,1730908245324,-641.59,0.00028219,2]
[341461362,1730908245335,-500.0,0.00028219,2]
[341461363,1730908245344,-2639.15,0.00028219,2]
[341461364,1730908245354,-617.45,0.00028219,2]
[341461365,1730908245365,-420.82,0.00028219,2]
[341461366,1730908245375,-1458.6,0.00028219,2]
[341461367,1730908245385,-500.0,0.00028219,2]
[341461368,1730908245397,-500.0,0.00028219,2]
[341461369,1730908245406,-500.0,0.00028219,2]
[341461370,1730908245416,-264.24021988,0.00028219,2]
[341461371,1730908245425,-393.54540719,0.00028219,2]
[341461372,1730908245435,-500.0,0.00028219,2]
[341461373,1730908245445,-500.0,0.00028219,2]
[341461374,1730908245455,-500.0,0.00028219,2]
[341461375,1730908245466,-915.32190744,0.00028398,2]
[341461376,1730908245476,-500.0,0.00028492,2]
[341461377,1730908245486,-200.0,0.00028492,2]
[341461378,1730908245496,-500.0,0.00028492,2]
[341461380,1730908245506,-500.0,0.00028492,2]
[341461381,1730908245516,-500.0,0.00028492,2]
[341461383,1730908245525,-500.0,0.00028492,2]
[341461384,1730908245536,-500.0,0.00028492,2]
[341461385,1730908245547,-500.0,0.00028492,2]
[341461386,1730908245557,-211.62340562,0.00028492,2]
[341461387,1730908245566,-500.0,0.00028492,2]
[341461388,1730908245577,-500.0,0.00028492,2]
[341461389,1730908245586,-280.67,0.00028493,2]
[341461390,1730908245596,-500.0,0.00028493,2]
[341461391,1730908245607,-500.0,0.00028493,2]
[341461392,1730908245618,-500.0,0.00028493,2]
[341461393,1730908245629,-500.0,0.00028493,2]
[341461394,1730908245644,-641.59,0.00028493,2]
[341461395,1730908245655,-500.0,0.00028493,2]
[341461396,1730908245666,-2639.15,0.00028493,2]
[341461397,1730908245678,-617.45,0.00028493,2]
[341461398,1730908245689,-1458.6,0.00028493,2]
[341461399,1730908245698,-500.0,0.00028493,2]
[341461400,1730908245709,-500.0,0.00028493,2]
[341461401,1730908245719,-500.0,0.00028493,2]
[341461402,1730908245729,-339.07,0.00028493,2]
[341461403,1730908245740,-300.83,0.00028493,2]
[341461404,1730908245751,-500.0,0.00028493,2]
[341461405,1730908245761,-465.58560387,0.00028683,2]
[341461406,1730908245771,-511.88328777,0.00028742,5]
[341461407,1730908245782,-1000.0,0.00028742,5]
[341461408,1730908245793,-1000.0,0.00028742,2]
[341461409,1730908245804,-1000.0,0.00028742,5]
[341461410,1730908245815,-1000.0,0.00028742,5]
[341461411,1730908245826,-1000.0,0.00028742,5]
[341461412,1730908245837,-361.72,0.00028757,3]
[341461413,1730908245848,-500.0,0.00028766,2]
[341461414,1730908245859,-242.78,0.00028766,2]
[341461415,1730908245870,-500.0,0.00028766,2]
[341461416,1730908245880,-377.3557816,0.00028766,2]
[341461417,1730908245893,-500.0,0.00028767,2]
[341461418,1730908245902,-500.0,0.00028767,2]
[341461419,1730908245911,-500.0,0.00028767,2]
[341461420,1730908245920,-644.1058501,0.00028767,2]